[Event "15e Open International de Quenza"]
[Site "Quenza"]
[Date "2026.07.05"]
[Round "4.17"]
[White "DELADERRIERE, Apollo"]
[Black "ERCOLI, Andria"]
[Result "1-0"]
[TimeControl "5min+3s"]
[WhiteTitle "-"]
[BlackTitle "-"]
[WhiteFideId "-"]
[BlackFideId "-"]
[WhiteElo "2111"]
[BlackElo "1762"]

1. e4 {[%clk 00:05:03]} c5 {[%clk 00:05:03]} {[%emt 00:00:02]} 2. c3 {[%clk
00:05:03]} {[%emt 00:00:02]} d5 {[%clk 00:05:00]} {[%emt 00:00:06]} 3. exd5
{[%clk 00:05:03]} {[%emt 00:00:03]} Qxd5 {[%clk 00:05:00]} 4. d4 {[%clk
00:05:03]} {[%emt 00:00:03]} Bf5 {[%clk 00:05:00]} {[%emt 00:00:02]} 5. Nf3
{[%clk 00:05:03]} {[%emt 00:00:04]} Nc6 {[%clk 00:04:59]} {[%emt 00:00:04]} 6.
Be3 {[%clk 00:05:03]} {[%emt 00:00:03]} cxd4 {[%clk 00:04:58]} {[%emt
00:00:04]} 7. cxd4 {[%clk 00:04:58]} {[%emt 00:00:08]} Bxb1 {[%clk 00:04:58]}
{[%emt 00:00:02]} 8. Rxb1 {[%clk 00:04:32]} {[%emt 00:00:29]} e6 {[%clk
00:04:58]} {[%emt 00:00:03]} 9. a3 {[%clk 00:04:23]} {[%emt 00:00:12]} Nf6
{[%clk 00:04:58]} {[%emt 00:00:02]} 10. Be2 {[%clk 00:04:20]} {[%emt 00:00:06]}
Be7 {[%clk 00:04:54]} {[%emt 00:00:06]} 11. h3 {[%clk 00:04:20]} {[%emt
00:00:04]} O-O {[%clk 00:04:54]} {[%emt 00:00:03]} 12. O-O {[%clk 00:04:20]}
{[%emt 00:00:03]} Rfd8 {[%clk 00:04:51]} {[%emt 00:00:06]} 13. b4 {[%clk
00:04:18]} {[%emt 00:00:05]} Ne4 {[%clk 00:04:32]} {[%emt 00:00:22]} 14. Qd3
{[%clk 00:04:14]} {[%emt 00:00:07]} Rac8 {[%clk 00:04:18]} {[%emt 00:00:17]} 15.
Rfc1 {[%clk 00:04:10]} {[%emt 00:00:06]} Bf6 {[%clk 00:04:02]} {[%emt
00:00:19]} 16. Rd1 {[%clk 00:03:45]} {[%emt 00:00:29]} Ne7 {[%clk 00:03:50]}
{[%emt 00:00:14]} 17. Rbc1 {[%clk 00:03:43]} {[%emt 00:00:05]} Nf5 {[%clk
00:03:45]} {[%emt 00:00:08]} 18. g4 {[%clk 00:03:22]} {[%emt 00:00:24]} Rxc1
{[%clk 00:03:37]} {[%emt 00:00:10]} 19. Rxc1 {[%emt 00:00:02]} Nxe3 {[%clk
00:03:28]} {[%emt 00:00:12]} 20. fxe3 {[%clk 00:03:22]} {[%emt 00:00:02]} e5
{[%clk 00:02:43]} {[%emt 00:00:47]} 21. dxe5 {[%clk 00:02:55]} {[%emt
00:00:31]} Qxd3 {[%clk 00:02:19]} {[%emt 00:00:27]} 22. Bxd3 {[%clk 00:02:55]}
{[%emt 00:00:02]} Rxd3 {[%clk 00:02:19]} {[%emt 00:00:02]} 23. exf6 {[%clk
00:02:55]} gxf6 {[%clk 00:02:15]} {[%emt 00:00:06]} 24. Nd4 {[%clk 00:02:55]}
{[%emt 00:00:02]} Rc3 {[%clk 00:01:43]} {[%emt 00:00:35]} 25. Rd1 {[%clk
00:02:28]} {[%emt 00:00:29]} Rxa3 {[%clk 00:01:37]} {[%emt 00:00:10]} 26. Nf5
{[%clk 00:02:28]} {[%emt 00:00:03]} h5 {[%clk 00:01:33]} {[%emt 00:00:06]} 27.
gxh5 {[%clk 00:02:16]} {[%emt 00:00:15]} a5 {[%clk 00:01:33]} {[%emt 00:00:02]}
28. Rd8+ {[%clk 00:02:01]} {[%emt 00:00:18]} Kh7 {[%clk 00:01:33]} 29. Rd7
{[%clk 00:01:27]} {[%emt 00:00:37]} axb4 {[%clk 00:01:07]} {[%emt 00:00:29]} 30.
Rxf7+ {[%clk 00:01:27]} {[%emt 00:00:02]} Kg8 {[%clk 00:01:07]} {[%emt
00:00:04]} 31. Rxb7 {[%clk 00:01:18]} {[%emt 00:00:12]} b3 {[%clk 00:01:07]}
{[%emt 00:00:01]} 32. h6 {[%clk 00:01:18]} {[%emt 00:00:04]} Ra1+ {[%clk
00:00:56]} {[%emt 00:00:13]} 33. Kg2 {[%emt 00:00:03]} Ra2+ {[%clk 00:00:56]}
34. Kf3 {[%clk 00:01:17]} {[%emt 00:00:04]} Ng5+ {[%clk 00:00:56]} {[%emt
00:00:02]} 35. Kg3 {[%clk 00:01:08]} {[%emt 00:00:12]} b2 {[%clk 00:00:48]}
{[%emt 00:00:11]} 36. h4 {[%clk 00:01:06]} {[%emt 00:00:05]} Ne4+ {[%clk
00:00:32]} {[%emt 00:00:19]} 37. Kg4 {[%clk 00:01:01]} {[%emt 00:00:08]} Nc3
{[%clk 00:00:32]} {[%emt 00:00:03]} 38. Ne7+ {[%clk 00:00:59]} {[%emt
00:00:05]} Kf8 {[%clk 00:00:18]} {[%emt 00:00:17]} 39. Ng6+ {[%clk 00:00:59]}
{[%emt 00:00:03]} Ke8 {[%clk 00:00:17]} {[%emt 00:00:03]} 40. h7 {[%clk
00:00:59]} {[%emt 00:00:02]} 1-0

[Event "15e Open International de Quenza"]
[Site "Quenza"]
[Date "2026.07.05"]
[Round "4.16"]
[White "FERRANDI, Bernard"]
[Black "TERNAULT, Mathieu"]
[Result "0-1"]
[TimeControl "5min+3s"]
[WhiteTitle "-"]
[BlackTitle "FM"]
[WhiteFideId "-"]
[BlackFideId "-"]
[WhiteElo "1796"]
[BlackElo "2188"]

1. e4 {[%clk 00:05:03]} {[%emt 01:27:55]} e6 {[%clk 00:05:03]} {[%emt
00:00:02]} 2. d4 {[%clk 00:05:03]} {[%emt 00:00:01]} d5 {[%clk 00:05:03]}
{[%emt 00:00:02]} 3. exd5 {[%clk 00:05:03]} {[%emt 00:00:02]} exd5 {[%clk
00:05:03]} {[%emt 00:00:01]} 4. c4 {[%clk 00:05:03]} {[%emt 00:00:01]} Bb4+
{[%clk 00:05:03]} {[%emt 00:00:02]} 5. Bd2 {[%clk 00:05:03]} {[%emt 00:00:01]}
Bxd2+ {[%clk 00:04:59]} {[%emt 00:00:08]} 6. Qxd2 {[%clk 00:05:02]} {[%emt
00:00:04]} Nf6 {[%clk 00:04:59]} {[%emt 00:00:01]} 7. Nc3 {[%clk 00:05:00]}
{[%emt 00:00:06]} O-O {[%clk 00:04:59]} {[%emt 00:00:02]} 8. cxd5 {[%clk
00:04:49]} {[%emt 00:00:14]} Nbd7 {[%clk 00:04:34]} {[%emt 00:00:28]} 9. Nf3
{[%clk 00:04:45]} {[%emt 00:00:07]} Nb6 {[%emt 00:00:10]} 10. Be2 {[%clk
00:04:31]} {[%emt 00:00:07]} Nbxd5 {[%clk 00:04:34]} {[%emt 00:00:03]} 11. O-O
{[%clk 00:04:26]} {[%emt 00:00:08]} Bg4 {[%clk 00:04:30]} {[%emt 00:00:07]} 12.
Ne5 {[%clk 00:04:15]} {[%emt 00:00:15]} Bxe2 {[%clk 00:04:29]} {[%emt
00:00:03]} 13. Nxe2 {[%clk 00:04:07]} {[%emt 00:00:11]} Re8 {[%clk 00:04:29]}
{[%emt 00:00:01]} 14. f4 {[%clk 00:04:04]} {[%emt 00:00:07]} Qd6 {[%clk
00:04:22]} {[%emt 00:00:09]} 15. Ng3 {[%clk 00:03:47]} {[%emt 00:00:20]} Qb4
{[%clk 00:04:11]} {[%emt 00:00:14]} 16. Qxb4 {[%clk 00:03:35]} {[%emt
00:00:16]} Nxb4 {[%clk 00:04:11]} {[%emt 00:00:01]} 17. a3 {[%clk 00:03:34]}
{[%emt 00:00:03]} Nbd5 {[%clk 00:03:57]} {[%emt 00:00:17]} 18. Rae1 {[%clk
00:03:24]} {[%emt 00:00:12]} Rad8 {[%clk 00:03:57]} {[%emt 00:00:03]} 19. Ne2
{[%clk 00:03:11]} {[%emt 00:00:16]} Ne3 {[%clk 00:03:41]} {[%emt 00:00:20]} 20.
Rf3 {[%clk 00:03:05]} {[%emt 00:00:09]} Nf5 {[%clk 00:03:41]} {[%emt 00:00:01]}
21. Rd3 {[%clk 00:03:02]} {[%emt 00:00:06]} h5 {[%clk 00:03:31]} {[%emt
00:00:12]} 22. Rc1 {[%clk 00:03:02]} {[%emt 00:00:02]} c6 {[%clk 00:03:31]}
{[%emt 00:00:01]} 23. h3 {[%clk 00:02:55]} {[%emt 00:00:10]} h4 {[%clk
00:03:31]} {[%emt 00:00:04]} 24. Kh2 {[%clk 00:02:42]} {[%emt 00:00:15]} Rd5
{[%clk 00:03:31]} {[%emt 00:00:02]} 25. Nc3 {[%clk 00:02:37]} {[%emt 00:00:09]}
Rxd4 {[%clk 00:03:30]} {[%emt 00:00:04]} 26. Rxd4 {[%clk 00:02:29]} {[%emt
00:00:11]} Nxd4 {[%clk 00:03:30]} {[%emt 00:00:01]} 27. Rd1 {[%clk 00:02:19]}
{[%emt 00:00:12]} Nf5 {[%clk 00:03:25]} {[%emt 00:00:08]} 28. Ne2 {[%clk
00:02:05]} {[%emt 00:00:16]} Nd5 {[%clk 00:03:25]} {[%emt 00:00:02]} 29. g4
{[%clk 00:01:55]} {[%emt 00:00:14]} hxg3+ 30. Nxg3 {[%clk 00:01:55]} Nxf4
{[%clk 00:02:59]} {[%emt 00:00:29]} 31. Nxf5 {[%clk 00:01:36]} {[%emt
00:00:21]} Rxe5 {[%clk 00:02:59]} {[%emt 00:00:01]} 32. Rd8+ {[%clk 00:01:33]}
{[%emt 00:00:06]} Kh7 {[%clk 00:02:59]} {[%emt 00:00:02]} 33. Nd6 {[%clk
00:01:33]} {[%emt 00:00:02]} f6 {[%clk 00:02:47]} {[%emt 00:00:15]} 34. Nxb7
{[%clk 00:01:27]} {[%emt 00:00:09]} Rb5 {[%clk 00:02:47]} {[%emt 00:00:01]} 35.
Rd7 {[%clk 00:01:22]} {[%emt 00:00:08]} Rxb2+ {[%clk 00:02:42]} {[%emt
00:00:07]} 36. Kg3 {[%clk 00:01:22]} Nd5 {[%clk 00:02:36]} {[%emt 00:00:11]} 37.
Nc5 {[%clk 00:01:18]} {[%emt 00:00:07]} Kh6 {[%clk 00:02:19]} {[%emt 00:00:20]}
38. Rxa7 {[%clk 00:01:16]} {[%emt 00:00:04]} g5 {[%clk 00:02:19]} {[%emt
00:00:04]} 39. Ra6 {[%clk 00:01:07]} {[%emt 00:00:10]} Ra2 {[%clk 00:02:19]}
{[%emt 00:00:04]} 40. Rxc6 {[%clk 00:01:02]} {[%emt 00:00:07]} Rxa3+ {[%clk
00:02:19]} {[%emt 00:00:02]} 41. Kh2 {[%clk 00:00:59]} {[%emt 00:00:05]} Kg6
{[%clk 00:02:04]} {[%emt 00:00:19]} 42. Ne4 {[%clk 00:00:52]} {[%emt 00:00:10]}
Rf3 {[%clk 00:02:04]} {[%emt 00:00:02]} 43. Rd6 {[%clk 00:00:48]} {[%emt
00:00:07]} Ne7 {[%clk 00:01:58]} {[%emt 00:00:10]} 44. Kg2 {[%clk 00:00:46]}
{[%emt 00:00:05]} Rf4 {[%clk 00:01:58]} {[%emt 00:00:02]} 45. Re6 {[%clk
00:00:42]} {[%emt 00:00:06]} Nd5 {[%clk 00:01:28]} {[%emt 00:00:34]} 46. Nc5
{[%clk 00:00:36]} {[%emt 00:00:09]} Kf5 {[%clk 00:01:25]} {[%emt 00:00:05]} 47.
Rd6 {[%clk 00:00:35]} {[%emt 00:00:03]} Ne3+ {[%clk 00:01:24]} {[%emt
00:00:04]} 48. Kg3 {[%clk 00:00:33]} {[%emt 00:00:04]} Kg6 {[%clk 00:01:14]}
{[%emt 00:00:15]} 49. Re6 {[%clk 00:00:30]} {[%emt 00:00:05]} Nf5+ {[%clk
00:01:14]} {[%emt 00:00:02]} 50. Kh2 {[%clk 00:00:29]} {[%emt 00:00:03]} Nh4
{[%clk 00:01:14]} {[%emt 00:00:03]} 51. Nd3 {[%clk 00:00:28]} {[%emt 00:00:05]}
Rd4 {[%clk 00:01:12]} {[%emt 00:00:05]} 52. Ne1 {[%clk 00:00:26]} {[%emt
00:00:05]} Rd2+ {[%clk 00:01:11]} {[%emt 00:00:04]} 53. Kg3 {[%clk 00:00:25]}
{[%emt 00:00:03]} Nf5+ {[%clk 00:01:09]} {[%emt 00:00:07]} 54. Kg4 {[%clk
00:00:10]} {[%emt 00:00:22]} Nh4 {[%clk 00:01:03]} {[%emt 00:00:09]} 55. Nf3
{[%clk 00:00:09]} {[%emt 00:00:04]} Rg2# {[%clk 00:01:03]} {[%emt 00:00:02]}
0-1

[Event "15e Open International de Quenza"]
[Site "Quenza"]
[Date "2026.07.05"]
[Round "4.13"]
[White "BONELLI MAESTRACCI, Pierre Joseph"]
[Black "SIBILLE, Ettore"]
[Result "1-0"]
[TimeControl "5min+3s"]
[WhiteTitle "-"]
[BlackTitle "-"]
[WhiteFideId "-"]
[BlackFideId "-"]
[WhiteElo "2205"]
[BlackElo "1822"]

1. e4 {[%emt 01:27:21]} c5 {[%emt 00:00:01]} 2. Nf3 g6 {[%emt 00:00:02]} 3. d4
{[%emt 00:00:02]} cxd4 {[%emt 00:00:02]} 4. Nxd4 {[%emt 00:00:01]} Bg7 {[%emt
00:00:01]} 5. c4 Nc6 {[%emt 00:00:02]} 6. Be3 Qb6 7. Nb5 {[%emt 00:00:10]} Qd8
{[%emt 00:00:01]} 8. N1c3 {[%emt 00:00:11]} a6 {[%emt 00:00:07]} 9. Nd4 Nf6
{[%emt 00:00:16]} 10. Be2 {[%emt 00:00:01]} O-O {[%emt 00:00:02]} 11. O-O
{[%emt 00:00:03]} d6 {[%emt 00:00:04]} 12. f3 {[%emt 00:00:01]} Bd7 {[%emt
00:00:01]} 13. Rc1 {[%emt 00:00:05]} Nxd4 {[%emt 00:00:03]} 14. Bxd4 {[%emt
00:00:01]} Bc6 15. Qd2 {[%emt 00:00:09]} Nd7 {[%emt 00:00:02]} 16. Rfd1 {[%emt
00:00:03]} Bxd4+ {[%emt 00:00:09]} 17. Qxd4 {[%emt 00:00:01]} Qb6 {[%emt
00:00:21]} 18. Qxb6 Nxb6 {[%emt 00:00:11]} 19. Kf2 {[%emt 00:00:10]} Rac8
{[%emt 00:00:15]} 20. b3 Nd7 {[%emt 00:00:02]} 21. Ke3 {[%emt 00:00:01]} Kg7
{[%emt 00:00:11]} 22. b4 {[%emt 00:00:08]} Ne5 {[%emt 00:00:07]} 23. f4 {[%emt
00:00:04]} Nd7 {[%emt 00:00:39]} 24. b5 axb5 25. cxb5 Nc5 {[%emt 00:00:15]} 26.
bxc6 {[%emt 00:00:02]} bxc6 27. Rb1 {[%emt 00:00:04]} Rc7 {[%emt 00:00:07]} 28.
Rb4 {[%emt 00:00:16]} Ra8 {[%emt 00:00:16]} 29. a4 {[%emt 00:00:01]} Rca7
{[%emt 00:00:49]} 30. Ra1 {[%emt 00:00:06]} Ra5 {[%emt 00:00:34]} 31. Rb6
{[%emt 00:00:23]} Nxa4 {[%emt 00:00:39]} 32. Rxa4 {[%emt 00:00:02]} Rxa4 {[%emt
00:00:02]} 33. Nxa4 Rxa4 {[%emt 00:00:03]} 34. Rxc6 {[%emt 00:00:01]} Ra7
{[%emt 00:00:21]} 35. Bd3 {[%emt 00:00:16]} Rb7 {[%emt 00:00:08]} 36. g3 {[%emt
00:00:17]} Rb2 {[%emt 00:00:06]} 37. Rc2 {[%emt 00:00:01]} Rb4 {[%emt
00:00:02]} 38. Bc4 {[%emt 00:00:07]} Kf6 {[%emt 00:00:23]} 39. Bd5 {[%emt
00:00:04]} Ra4 {[%emt 00:00:05]} 1-0

[Event "15e Open International de Quenza"]
[Site "Quenza"]
[Date "2026.07.05"]
[Round "4.6"]
[White "SUMETS, Andrey"]
[Black "RATIER-FONTANA, Matteo"]
[Result "1-0"]
[TimeControl "5min+3s"]
[WhiteTitle "GM"]
[BlackTitle "-"]
[WhiteFideId "-"]
[BlackFideId "-"]
[WhiteElo "2470"]
[BlackElo "2368"]

1. d4 {[%clk 00:05:03]} Nf6 {[%clk 00:05:03]} {[%emt 00:00:01]} 2. c4 {[%clk
00:05:03]} {[%emt 00:00:01]} b6 {[%clk 00:05:03]} {[%emt 00:00:01]} 3. Nc3
{[%clk 00:04:49]} {[%emt 00:00:17]} Bb7 {[%clk 00:05:03]} {[%emt 00:00:01]} 4.
Nf3 {[%clk 00:04:45]} {[%emt 00:00:07]} Ne4 {[%clk 00:05:03]} {[%emt 00:00:01]}
5. Nxe4 {[%clk 00:04:37]} {[%emt 00:00:11]} Bxe4 {[%clk 00:05:03]} {[%emt
00:00:02]} 6. e3 {[%clk 00:04:25]} {[%emt 00:00:15]} e6 {[%clk 00:05:02]}
{[%emt 00:00:04]} 7. a3 {[%clk 00:04:25]} {[%emt 00:00:04]} Be7 {[%clk
00:04:57]} {[%emt 00:00:07]} 8. Bd3 {[%clk 00:04:25]} {[%emt 00:00:02]} Bxd3
{[%clk 00:04:17]} {[%emt 00:00:43]} 9. Qxd3 {[%clk 00:04:25]} {[%emt 00:00:01]}
d5 {[%clk 00:04:17]} {[%emt 00:00:03]} 10. O-O {[%clk 00:04:23]} {[%emt
00:00:04]} O-O {[%clk 00:04:15]} {[%emt 00:00:05]} 11. e4 {[%clk 00:04:22]}
{[%emt 00:00:05]} dxe4 {[%clk 00:04:04]} {[%emt 00:00:14]} 12. Qxe4 {[%clk
00:04:22]} {[%emt 00:00:02]} Nd7 {[%clk 00:04:04]} {[%emt 00:00:01]} 13. Re1
{[%clk 00:04:20]} {[%emt 00:00:05]} Nf6 {[%clk 00:04:02]} {[%emt 00:00:05]} 14.
Qe2 {[%clk 00:04:20]} {[%emt 00:00:02]} Re8 {[%clk 00:03:49]} {[%emt 00:00:16]}
15. Bf4 {[%clk 00:04:20]} {[%emt 00:00:02]} Qc8 {[%clk 00:03:39]} {[%emt
00:00:13]} 16. b4 {[%clk 00:04:05]} {[%emt 00:00:18]} c6 {[%clk 00:03:28]}
{[%emt 00:00:14]} 17. Ne5 {[%clk 00:03:49]} {[%emt 00:00:17]} a6 {[%clk
00:02:55]} {[%emt 00:00:38]} 18. Qf3 {[%clk 00:03:32]} {[%emt 00:00:20]} c5
{[%clk 00:02:43]} {[%emt 00:00:15]} 19. dxc5 {[%clk 00:03:32]} {[%emt
00:00:04]} bxc5 {[%clk 00:02:43]} {[%emt 00:00:02]} 20. Nc6 {[%clk 00:03:31]}
{[%emt 00:00:03]} Bf8 {[%clk 00:02:12]} {[%emt 00:00:34]} 21. Rab1 {[%clk
00:03:27]} {[%emt 00:00:07]} Nd7 {[%clk 00:02:04]} {[%emt 00:00:11]} 22. Be3
{[%clk 00:03:13]} {[%emt 00:00:17]} Nb8 {[%clk 00:01:51]} {[%emt 00:00:17]} 23.
Ne5 {[%clk 00:02:55]} {[%emt 00:00:21]} Ra7 {[%clk 00:01:46]} {[%emt 00:00:08]}
24. bxc5 {[%clk 00:02:55]} {[%emt 00:00:02]} Rc7 {[%clk 00:01:14]} {[%emt
00:00:35]} 25. Bf4 {[%clk 00:02:21]} {[%emt 00:00:36]} f6 {[%clk 00:00:36]}
{[%emt 00:00:42]} 26. Rxb8 {[%clk 00:01:35]} {[%emt 00:00:49]} Qxb8 {[%clk
00:00:36]} 27. Nd7 {[%clk 00:01:35]} Qc8 {[%clk 00:00:34]} {[%emt 00:00:06]} 28.
Bxc7 {[%clk 00:01:35]} {[%emt 00:00:03]} Qxd7 {[%clk 00:00:24]} {[%emt
00:00:13]} 29. Bb6 {[%clk 00:01:35]} {[%emt 00:00:02]} Rc8 {[%clk 00:00:21]}
{[%emt 00:00:07]} 30. Rd1 {[%clk 00:01:35]} {[%emt 00:00:02]} Qa4 {[%clk
00:00:13]} {[%emt 00:00:11]} 31. Qe2 {[%clk 00:01:22]} {[%emt 00:00:16]} Kf7
{[%clk 00:00:13]} {[%emt 00:00:04]} 32. g3 {[%clk 00:01:19]} {[%emt 00:00:06]}
Bxc5 {[%clk 00:00:13]} {[%emt 00:00:02]} 33. Qh5+ {[%clk 00:01:17]} {[%emt
00:00:05]} Kg8 {[%clk 00:00:11]} {[%emt 00:00:05]} 34. Bxc5 {[%clk 00:01:16]}
{[%emt 00:00:04]} Qa5 {[%clk 00:00:11]} 35. Rd7 {[%clk 00:01:11]} {[%emt
00:00:07]} Qe1+ {[%clk 00:00:07]} {[%emt 00:00:07]} 36. Kg2 {[%clk 00:01:11]}
Qe4+ {[%clk 00:00:07]} 37. Kh3 {[%clk 00:01:11]} {[%emt 00:00:04]} Kh8 {[%clk
00:00:06]} {[%emt 00:00:05]} 38. Re7 {[%clk 00:01:06]} {[%emt 00:00:07]} Rg8
{[%clk 00:00:05]} {[%emt 00:00:04]} 39. Re8 {[%clk 00:01:04]} {[%emt 00:00:06]}
Qc6 {[%clk 00:00:04]} {[%emt 00:00:04]} 40. Rxg8+ {[%clk 00:01:00]} {[%emt
00:00:06]} Kxg8 {[%clk 00:00:04]} 41. Be3 {[%clk 00:01:00]} {[%emt 00:00:03]}
e5 {[%clk 00:00:04]} {[%emt 00:00:01]} 42. c5 {[%clk 00:00:54]} {[%emt
00:00:08]} g6 {[%clk 00:00:04]} 43. Qd1 {[%clk 00:00:54]} {[%emt 00:00:02]} Qe4
{[%clk 00:00:04]} {[%emt 00:00:03]} 44. g4 {[%emt 00:00:13]} h5 45. gxh5 {[%clk
00:00:40]} {[%emt 00:00:04]} g5 {[%emt 00:00:04]} 1-0

[Event "15e Open International de Quenza"]
[Site "Quenza"]
[Date "2026.07.05"]
[Round "4.15"]
[White "MULLON, Jean-Baptiste"]
[Black "TANNOUS BONELLI, Maxime"]
[Result "1-0"]
[TimeControl "5min+3s"]
[WhiteTitle "IM"]
[BlackTitle "-"]
[WhiteFideId "-"]
[BlackFideId "-"]
[WhiteElo "2198"]
[BlackElo "1802"]

1. e4 {[%emt 01:35:45]} e5 {[%emt 00:00:02]} 2. Nf3 {[%emt 00:00:01]} Nc6
{[%emt 00:00:01]} 3. Bb5 d6 4. d4 {[%emt 00:00:02]} exd4 {[%emt 00:00:02]} 5.
Nxd4 Bd7 {[%emt 00:00:03]} 6. Bxc6 {[%emt 00:00:02]} Bxc6 {[%emt 00:00:02]} 7.
Nc3 {[%emt 00:00:05]} Nf6 {[%emt 00:00:04]} 8. O-O {[%emt 00:00:03]} Be7 {[%emt
00:00:03]} 9. Qd3 {[%emt 00:00:02]} O-O {[%emt 00:00:04]} 10. Nxc6 {[%emt
00:00:05]} bxc6 {[%emt 00:00:02]} 11. Bf4 {[%emt 00:00:01]} Nd7 {[%emt
00:00:13]} 12. Qc4 {[%emt 00:00:03]} c5 {[%emt 00:00:36]} 13. Nd5 {[%emt
00:00:02]} Nb6 {[%emt 00:00:04]} 14. Qd3 {[%emt 00:00:07]} Nxd5 15. Qxd5 Bf6
{[%emt 00:00:03]} 16. Rab1 {[%emt 00:00:02]} Qe7 {[%emt 00:00:07]} 17. b3
{[%emt 00:00:04]} Rfe8 {[%emt 00:00:19]} 18. Rfe1 {[%emt 00:00:02]} Be5 {[%emt
00:00:09]} 19. Bxe5 {[%emt 00:00:06]} Qxe5 {[%emt 00:00:02]} 20. Qxe5 {[%emt
00:00:01]} Rxe5 {[%emt 00:00:03]} 21. f3 f6 {[%emt 00:00:06]} 22. Kf2 {[%emt
00:00:02]} Kf7 {[%emt 00:00:03]} 23. Red1 {[%emt 00:00:01]} Rb8 {[%emt
00:00:16]} 24. Rd2 {[%emt 00:00:02]} Rb6 {[%emt 00:00:07]} 25. g4 {[%emt
00:00:09]} g5 {[%emt 00:00:05]} 26. Rh1 {[%emt 00:00:05]} Kg6 {[%emt 00:00:18]}
27. h4 h6 {[%emt 00:00:22]} 28. Ke3 {[%emt 00:00:04]} Rb8 {[%emt 00:00:09]} 29.
hxg5 {[%emt 00:00:02]} hxg5 {[%emt 00:00:03]} 30. Rdh2 {[%emt 00:00:01]} Rg8
{[%emt 00:01:04]} 31. Rh7 {[%emt 00:00:02]} Rg7 {[%emt 00:00:03]} 32. Rh8 c6
{[%emt 00:00:37]} 33. R1h6+ {[%emt 00:00:05]} Kf7 {[%emt 00:00:03]} 34. c4
{[%emt 00:00:12]} Rg6 {[%emt 00:00:50]} 35. Rxg6 {[%emt 00:00:17]} Kxg6 {[%emt
00:00:02]} 36. Rd8 {[%emt 00:00:01]} Re6 {[%emt 00:00:20]} 37. Rd7 {[%emt
00:00:02]} d5 {[%emt 00:00:07]} 38. cxd5 {[%emt 00:00:01]} cxd5 {[%emt
00:00:01]} 39. Rxd5 Ra6 {[%emt 00:00:01]} 40. a4 {[%emt 00:00:09]} Rb6 {[%emt
00:00:01]} 41. Rd3 Rb7 {[%emt 00:00:06]} 42. Rc3 {[%emt 00:00:02]} Rc7 {[%emt
00:00:02]} 43. Kd3 Kf7 44. Kc4 {[%emt 00:00:01]} a6 {[%emt 00:00:02]} 45. Rd3
{[%emt 00:00:02]} Ke6 {[%emt 00:00:01]} 46. Rd5 Rh7 {[%emt 00:00:04]} 47. Rxc5
{[%emt 00:00:05]} Rh3 48. Rf5 {[%emt 00:00:01]} Rh8 {[%emt 00:00:04]} 49. b4
{[%emt 00:00:02]} Rc8+ {[%emt 00:00:02]} 50. Rc5 Rh8 {[%emt 00:00:02]} 51. b5
{[%emt 00:00:01]} axb5+ {[%emt 00:00:02]} 52. axb5 Rh3 {[%emt 00:00:03]} 1-0